[Event "*** Titled Tuesday Blitz"]
[Site "Chess.com"]
[Date "2020.12.01"]
[Round "8"]
[White "NeverW84M8"]
[Black "WeAintSurePal"]
[Result "1-0"]
[WhiteElo "2541"]
[BlackElo "2373"]
[TimeControl "180+1"]
[EndTime "11:26:27 PST"]
[Termination "NeverW84M8 won by resignation"]

1. d4 {[%clk 0:02:44.7]} 1... e6 {[%clk 0:03:00.9]} 2. c4 {[%clk 0:02:44]} 2...
Bb4+ {[%clk 0:03:00]} 3. Bd2 {[%clk 0:02:43.8]} 3... c5 {[%clk 0:03:00]} 4. d5
{[%clk 0:02:41.5]} 4... Bxd2+ {[%clk 0:02:49.4]} 5. Qxd2 {[%clk 0:02:41.4]} 5...
exd5 {[%clk 0:02:49.9]} 6. cxd5 {[%clk 0:02:40.5]} 6... d6 {[%clk 0:02:49.4]} 7.
Nc3 {[%clk 0:02:40.4]} 7... Nf6 {[%clk 0:02:48.6]} 8. Qe3+ {[%clk 0:02:36.9]}
8... Kf8 {[%clk 0:02:43.7]} 9. Nf3 {[%clk 0:02:34.3]} 9... g6 {[%clk 0:02:38.6]}
10. Qh6+ {[%clk 0:02:33.6]} 10... Kg8 {[%clk 0:02:37.3]} 11. h3 {[%clk
0:02:32.1]} 11... b5 {[%clk 0:02:27.8]} 12. Nxb5 {[%clk 0:02:28]} 12... Nxd5
{[%clk 0:02:27.8]} 13. Qd2 {[%clk 0:02:26.2]} 13... Nb4 {[%clk 0:02:25.8]} 14.
Nxd6 {[%clk 0:02:19]} 14... Qa5 {[%clk 0:02:16.4]} 15. Rc1 {[%clk 0:02:08.1]}
15... N8c6 {[%clk 0:02:02.4]} 16. a3 {[%clk 0:02:06.3]} 16... Ba6 {[%clk
0:01:57.3]} 17. axb4 {[%clk 0:02:05]} 17... Nxb4 {[%clk 0:01:57.3]} 18. e4
{[%clk 0:02:00.6]} 18... Rd8 {[%clk 0:01:56.5]} 19. e5 {[%clk 0:01:58.4]} 19...
f6 {[%clk 0:01:54.8]} 20. Bxa6 {[%clk 0:01:49.9]} 20... Qxa6 {[%clk 0:01:54.5]}
21. Rd1 {[%clk 0:01:38.3]} 21... fxe5 {[%clk 0:01:52.9]} 22. Nxe5 {[%clk
0:01:35.5]} 22... Kg7 {[%clk 0:01:48.5]} 23. f4 {[%clk 0:01:22.9]} 23... Rhf8
{[%clk 0:01:09.5]} 24. Kf2 {[%clk 0:00:57.5]} 24... g5 {[%clk 0:01:03.6]} 25. f5
{[%clk 0:00:50.9]} 25... Rf6 {[%clk 0:00:50.4]} 26. Nec4 {[%clk 0:00:45.6]}
26... h6 {[%clk 0:00:41.4]} 27. Rhe1 {[%clk 0:00:44.9]} 27... Nc6 {[%clk
0:00:33.7]} 28. Kg1 {[%clk 0:00:43.6]} 28... Nd4 {[%clk 0:00:31.6]} 29. Re7+
{[%clk 0:00:43.1]} 29... Kg8 {[%clk 0:00:27.7]} 30. Qe3 {[%clk 0:00:40.9]} 30...
Rdxd6 {[%clk 0:00:22.9]} 31. Re8+ {[%clk 0:00:38.1]} 31... Rf8 {[%clk
0:00:20.2]} 32. Rxf8+ {[%clk 0:00:29.2]} 32... Kxf8 {[%clk 0:00:21.1]} 33. Nxd6
{[%clk 0:00:27]} 33... Qxd6 {[%clk 0:00:22]} 34. Rf1 {[%clk 0:00:24.6]} 34...
Kf7 {[%clk 0:00:20.1]} 35. f6 {[%clk 0:00:24.4]} 35... c4 {[%clk 0:00:18.1]} 36.
Qe4 {[%clk 0:00:24.2]} 36... Qc5 {[%clk 0:00:17.5]} 37. Qh7+ {[%clk 0:00:24.1]}
37... Ke8 {[%clk 0:00:17.9]} 38. f7+ {[%clk 0:00:23.8]} 38... Kd7 {[%clk
0:00:17.5]} 39. f8=Q+ {[%clk 0:00:22.6]} 39... Kc6 {[%clk 0:00:17]} 40. Qxc5+
{[%clk 0:00:22.9]} 1-0

[Event "*** Titled Tuesday Blitz"]
[Site "Chess.com"]
[Date "2020.12.01"]
[Round "8"]
[White "Hikaru"]
[Black "Man-Chuk"]
[Result "1-0"]
[WhiteElo "3189"]
[BlackElo "2871"]
[TimeControl "180+1"]
[EndTime "11:26:32 PST"]
[Termination "Hikaru won by resignation"]

1. Nf3 {[%clk 0:03:00.9]} 1... d5 {[%clk 0:02:59.9]} 2. e3 {[%clk 0:03:00.6]}
2... Nf6 {[%clk 0:02:58.5]} 3. c4 {[%clk 0:03:00.7]} 3... e6 {[%clk 0:02:54.5]}
4. b3 {[%clk 0:02:59.6]} 4... Be7 {[%clk 0:02:54.5]} 5. Bb2 {[%clk 0:02:59.6]}
5... O-O {[%clk 0:02:51.3]} 6. g4 {[%clk 0:02:59.7]} 6... c5 {[%clk 0:02:48.4]}
7. g5 {[%clk 0:02:56.4]} 7... Ne4 {[%clk 0:02:48.5]} 8. h4 {[%clk 0:02:56.2]}
8... Nc6 {[%clk 0:02:46.9]} 9. a3 {[%clk 0:02:49.8]} 9... d4 {[%clk 0:02:22.1]}
10. d3 {[%clk 0:02:37.6]} 10... Nd6 {[%clk 0:02:04]} 11. exd4 {[%clk 0:02:20.1]}
11... cxd4 {[%clk 0:01:51.7]} 12. b4 {[%clk 0:02:14.1]} 12... e5 {[%clk
0:01:41.4]} 13. b5 {[%clk 0:02:08.3]} 13... Na5 {[%clk 0:01:41.5]} 14. Nxe5
{[%clk 0:01:38.7]} 14... Re8 {[%clk 0:01:39.4]} 15. Be2 {[%clk 0:01:10]} 15...
Bf8 {[%clk 0:01:16.4]} 16. f4 {[%clk 0:00:41.2]} 16... Nf5 {[%clk 0:01:16.3]}
17. Kf2 {[%clk 0:00:31.3]} 17... Ne3 {[%clk 0:01:13.5]} 18. Qg1 {[%clk
0:00:31.2]} 18... Nb3 {[%clk 0:01:08]} 19. Ra2 {[%clk 0:00:28.8]} 19... Bf5
{[%clk 0:00:36.1]} 20. Qg3 {[%clk 0:00:28.5]} 20... Bd6 {[%clk 0:00:28.6]} 21.
a4 {[%clk 0:00:22.3]} 21... f6 {[%clk 0:00:18.5]} 22. gxf6 {[%clk 0:00:22.1]}
22... Qxf6 {[%clk 0:00:19.4]} 23. Ra3 {[%clk 0:00:16.1]} 23... Rxe5 {[%clk
0:00:16]} 24. fxe5 {[%clk 0:00:15.2]} 24... Bxe5 {[%clk 0:00:16.7]} 25. Qg5
{[%clk 0:00:15.9]} 25... Qf7 {[%clk 0:00:08.3]} 26. Rxb3 {[%clk 0:00:16.3]}
26... Bxd3+ {[%clk 0:00:08.2]} 27. Ke1 {[%clk 0:00:17]} 27... Bxe2 {[%clk
0:00:05.3]} 28. Qxe5 {[%clk 0:00:15.5]} 28... Qxc4 {[%clk 0:00:05.5]} 29. Rxe3
{[%clk 0:00:14.9]} 29... Qb4+ {[%clk 0:00:04.6]} 30. Nd2 {[%clk 0:00:11.4]}
30... Qxb2 {[%clk 0:00:04.7]} 31. Qe6+ {[%clk 0:00:12]} 1-0

[Event "*** Titled Tuesday Blitz"]
[Site "Chess.com"]
[Date "2020.12.01"]
[Round "8"]
[White "Semetey"]
[Black "Rital44"]
[Result "0-1"]
[WhiteElo "2581"]
[BlackElo "2468"]
[TimeControl "180+1"]
[EndTime "11:26:33 PST"]
[Termination "Rital44 won on time"]

1. Nf3 {[%clk 0:03:00.9]} 1... Nf6 {[%clk 0:02:59.6]} 2. e3 {[%clk 0:03:01.8]}
2... g6 {[%clk 0:03:00.1]} 3. d4 {[%clk 0:02:59.3]} 3... Bg7 {[%clk 0:03:01]} 4.
Bd3 {[%clk 0:02:59.7]} 4... c5 {[%clk 0:02:57.4]} 5. O-O {[%clk 0:03:00]} 5...
cxd4 {[%clk 0:02:57.4]} 6. exd4 {[%clk 0:03:00.9]} 6... O-O {[%clk 0:02:57.7]}
7. Re1 {[%clk 0:02:52.4]} 7... d6 {[%clk 0:02:57.5]} 8. h3 {[%clk 0:02:52.1]}
8... b6 {[%clk 0:02:56.7]} 9. c4 {[%clk 0:02:52]} 9... Bb7 {[%clk 0:02:57.3]}
10. Nc3 {[%clk 0:02:51.1]} 10... Nbd7 {[%clk 0:02:57.4]} 11. d5 {[%clk
0:02:13.6]} 11... Rc8 {[%clk 0:02:56.6]} 12. Bf1 {[%clk 0:02:02.1]} 12... a6
{[%clk 0:02:56.3]} 13. a4 {[%clk 0:02:01.4]} 13... a5 {[%clk 0:02:54.2]} 14. Be3
{[%clk 0:01:57.1]} 14... Nc5 {[%clk 0:02:54]} 15. Nd4 {[%clk 0:01:54.3]} 15...
Ba6 {[%clk 0:02:53.3]} 16. Rc1 {[%clk 0:01:52.2]} 16... Qd7 {[%clk 0:02:50.2]}
17. Nc6 {[%clk 0:01:49.9]} 17... Rfe8 {[%clk 0:02:49.7]} 18. Nb5 {[%clk
0:01:39.5]} 18... e5 {[%clk 0:02:45.7]} 19. Bxc5 {[%clk 0:01:28.7]} 19... bxc5
{[%clk 0:02:42.8]} 20. Nxa5 {[%clk 0:01:28.5]} 20... Nh5 {[%clk 0:02:38.8]} 21.
Nc6 {[%clk 0:01:25.1]} 21... Nf4 {[%clk 0:02:33.1]} 22. b4 {[%clk 0:01:24]}
22... cxb4 {[%clk 0:02:30]} 23. Qb3 {[%clk 0:01:22.1]} 23... Bb7 {[%clk
0:02:23.3]} 24. Na5 {[%clk 0:01:12.7]} 24... Ba8 {[%clk 0:02:16.7]} 25. Qxb4
{[%clk 0:01:12.9]} 25... Bf8 {[%clk 0:02:14.9]} 26. Nb3 {[%clk 0:01:07.2]} 26...
Qf5 {[%clk 0:02:13.5]} 27. Re3 {[%clk 0:00:57]} 27... Qg5 {[%clk 0:02:12.2]} 28.
Rg3 {[%clk 0:00:53.9]} 28... Qh6 {[%clk 0:02:08.1]} 29. a5 {[%clk 0:00:53.5]}
29... Nxd5 {[%clk 0:02:07.1]} 30. cxd5 {[%clk 0:00:33.3]} 30... Rxc1 {[%clk
0:02:08]} 31. Nxc1 {[%clk 0:00:31.9]} 31... Qxc1 {[%clk 0:02:08.9]} 32. Nxd6
{[%clk 0:00:32.2]} 32... Rc8 {[%clk 0:01:54.1]} 33. Qb6 {[%clk 0:00:23.3]} 33...
Rc2 {[%clk 0:01:49.5]} 34. Nxf7 {[%clk 0:00:20.1]} 34... Rb2 {[%clk 0:01:24.1]}
35. Qf6 {[%clk 0:00:18.7]} 35... Bxd5 {[%clk 0:01:08.3]} 36. Nxe5 {[%clk
0:00:11.8]} 36... Rb1 {[%clk 0:01:06.7]} 37. Qa6 {[%clk 0:00:11.2]} 37... Bd6
{[%clk 0:00:55]} 38. Rg5 {[%clk 0:00:06.8]} 38... Qxg5 {[%clk 0:00:50.6]} 39.
Qc8+ {[%clk 0:00:04.7]} 39... Bf8 {[%clk 0:00:49.1]} 40. Ng4 {[%clk 0:00:03.1]}
40... Qc1 {[%clk 0:00:47]} 41. Qa6 {[%clk 0:00:02.1]} 41... Bc4 {[%clk
0:00:43.4]} 0-1

[Event "*** Titled Tuesday Blitz"]
[Site "Chess.com"]
[Date "2020.12.01"]
[Round "8"]
[White "KetiTsatsalashvili"]
[Black "PawnEatingZombie"]
[Result "0-1"]
[WhiteElo "2316"]
[BlackElo "2188"]
[TimeControl "180+1"]
[EndTime "11:26:38 PST"]
[Termination "PawnEatingZombie won by checkmate"]

1. d4 {[%clk 0:03:00.9]} 1... d5 {[%clk 0:02:59.7]} 2. Nf3 {[%clk 0:03:01.1]}
2... e6 {[%clk 0:02:59.6]} 3. g3 {[%clk 0:03:00.7]} 3... b5 {[%clk 0:02:59.2]}
4. Bg2 {[%clk 0:03:00.5]} 4... Nf6 {[%clk 0:02:58.1]} 5. O-O {[%clk 0:03:01]}
5... Bb7 {[%clk 0:02:57.9]} 6. a4 {[%clk 0:02:56.5]} 6... b4 {[%clk 0:02:58.5]}
7. c4 {[%clk 0:02:55.8]} 7... c5 {[%clk 0:02:55.3]} 8. Ne5 {[%clk 0:02:45.8]}
8... Nbd7 {[%clk 0:02:51.2]} 9. Bf4 {[%clk 0:02:32.8]} 9... cxd4 {[%clk
0:02:47.7]} 10. Qxd4 {[%clk 0:02:32.4]} 10... Bc5 {[%clk 0:02:45.4]} 11. Qd1
{[%clk 0:02:13.6]} 11... O-O {[%clk 0:02:25.8]} 12. Qc2 {[%clk 0:02:06]} 12...
Rc8 {[%clk 0:02:23.1]} 13. Nd2 {[%clk 0:01:59.7]} 13... h6 {[%clk 0:02:07.1]}
14. Nxd7 {[%clk 0:01:38.4]} 14... Qxd7 {[%clk 0:02:02.2]} 15. Be5 {[%clk
0:01:37.6]} 15... Ng4 {[%clk 0:01:55.9]} 16. Bf4 {[%clk 0:01:21.1]} 16... e5
{[%clk 0:01:51.8]} 17. h3 {[%clk 0:01:18.2]} 17... Nxf2 {[%clk 0:01:51.2]} 18.
Bxe5 {[%clk 0:01:12.4]} 18... Nd3+ {[%clk 0:01:44]} 19. Kh2 {[%clk 0:01:08.9]}
19... Nxe5 {[%clk 0:01:43.6]} 20. Rf5 {[%clk 0:01:01.6]} 20... Nxc4 {[%clk
0:01:22]} 21. Nxc4 {[%clk 0:00:50.1]} 21... dxc4 {[%clk 0:01:22.2]} 22. Rd1
{[%clk 0:00:44.4]} 22... b3 {[%clk 0:01:14.7]} 23. Qb1 {[%clk 0:00:31.5]} 23...
Qe7 {[%clk 0:01:03.7]} 24. e4 {[%clk 0:00:22.3]} 24... Rfd8 {[%clk 0:00:48.2]}
25. Rdf1 {[%clk 0:00:22.2]} 25... f6 {[%clk 0:00:43.2]} 26. Qc1 {[%clk
0:00:20.4]} 26... Bd4 {[%clk 0:00:36.3]} 27. Rb5 {[%clk 0:00:16.7]} 27... Bxe4
{[%clk 0:00:16.2]} 28. Re1 {[%clk 0:00:14.3]} 28... f5 {[%clk 0:00:11.5]} 29.
Rxf5 {[%clk 0:00:14.4]} 29... Qd7 {[%clk 0:00:05.5]} 30. Bxe4 {[%clk 0:00:13.7]}
30... c3 {[%clk 0:00:03.1]} 31. bxc3 {[%clk 0:00:12.7]} 31... Rxc3 {[%clk
0:00:03.1]} 32. Qb1 {[%clk 0:00:12.5]} 32... Qc7 {[%clk 0:00:03.4]} 33. Rd5
{[%clk 0:00:11.3]} 33... Qxg3+ {[%clk 0:00:03]} 34. Kh1 {[%clk 0:00:11.1]} 34...
Qxh3# {[%clk 0:00:02.4]} 0-1

[Event "*** Titled Tuesday Blitz"]
[Site "Chess.com"]
[Date "2020.12.01"]
[Round "8"]
[White "chidori_boruto"]
[Black "PlotnikovPavel"]
[Result "1-0"]
[WhiteElo "2690"]
[BlackElo "2474"]
[TimeControl "180+1"]
[EndTime "11:26:39 PST"]
[Termination "chidori_boruto won by checkmate"]

1. c4 {[%clk 0:03:00]} 1... e5 {[%clk 0:02:58.1]} 2. Nc3 {[%clk 0:02:59.3]} 2...
d6 {[%clk 0:02:57.8]} 3. g3 {[%clk 0:02:58.5]} 3... f5 {[%clk 0:02:58.1]} 4. Bg2
{[%clk 0:02:58.8]} 4... Nf6 {[%clk 0:02:58.4]} 5. d3 {[%clk 0:02:58.8]} 5... Be7
{[%clk 0:02:59.1]} 6. e3 {[%clk 0:02:57.6]} 6... O-O {[%clk 0:02:59.4]} 7. Nge2
{[%clk 0:02:58.1]} 7... c6 {[%clk 0:02:54.8]} 8. O-O {[%clk 0:02:57.1]} 8... Qe8
{[%clk 0:02:53.7]} 9. b4 {[%clk 0:02:54.9]} 9... Be6 {[%clk 0:02:53.4]} 10. b5
{[%clk 0:02:54.4]} 10... d5 {[%clk 0:02:46.8]} 11. bxc6 {[%clk 0:02:51.9]} 11...
bxc6 {[%clk 0:02:45.5]} 12. cxd5 {[%clk 0:02:51.6]} 12... cxd5 {[%clk
0:02:46.4]} 13. d4 {[%clk 0:02:51.6]} 13... e4 {[%clk 0:02:43.1]} 14. Qa4 {[%clk
0:02:43.1]} 14... Qxa4 {[%clk 0:02:39.3]} 15. Nxa4 {[%clk 0:02:44]} 15... Nbd7
{[%clk 0:02:40]} 16. Bd2 {[%clk 0:02:41.7]} 16... g5 {[%clk 0:02:39.7]} 17. Rfc1
{[%clk 0:02:40]} 17... Rfc8 {[%clk 0:02:39.6]} 18. h4 {[%clk 0:02:33.3]} 18...
h6 {[%clk 0:02:37]} 19. hxg5 {[%clk 0:02:27]} 19... hxg5 {[%clk 0:02:37.9]} 20.
Rab1 {[%clk 0:02:24]} 20... Ba3 {[%clk 0:02:37.3]} 21. Rxc8+ {[%clk 0:02:22.6]}
21... Rxc8 {[%clk 0:02:38.2]} 22. Nec3 {[%clk 0:02:14.6]} 22... a6 {[%clk
0:02:21.2]} 23. Bf1 {[%clk 0:02:13.3]} 23... Ra8 {[%clk 0:02:15.2]} 24. Nb6
{[%clk 0:02:08]} 24... Ra7 {[%clk 0:02:15]} 25. Rb3 {[%clk 0:02:03.8]} 25... Bd6
{[%clk 0:02:03]} 26. Nc8 {[%clk 0:02:01.4]} 26... Rc7 {[%clk 0:01:18]} 27. Nxd6
{[%clk 0:02:00]} 27... f4 {[%clk 0:01:18.9]} 28. exf4 {[%clk 0:01:57.2]} 28...
gxf4 {[%clk 0:01:19.8]} 29. Bxf4 {[%clk 0:01:56.9]} 29... Rc6 {[%clk 0:01:19.5]}
30. Ra3 {[%clk 0:01:35.6]} 30... a5 {[%clk 0:01:08.1]} 31. Ndb5 {[%clk
0:01:29.1]} 31... Nh5 {[%clk 0:00:54.7]} 32. Be3 {[%clk 0:01:25.8]} 32... Bg4
{[%clk 0:00:50.6]} 33. Rxa5 {[%clk 0:01:22.6]} 33... Bf3 {[%clk 0:00:47.9]} 34.
Ra8+ {[%clk 0:01:21.7]} 34... Kf7 {[%clk 0:00:47.4]} 35. Ra7 {[%clk 0:01:21.6]}
35... Ke6 {[%clk 0:00:39.3]} 36. Bh3+ {[%clk 0:01:20.8]} 36... Kf6 {[%clk
0:00:37.2]} 37. Bxd7 {[%clk 0:01:19.5]} 37... Rc4 {[%clk 0:00:34.5]} 38. Nxd5+
{[%clk 0:01:17.9]} 38... Kg6 {[%clk 0:00:33.4]} 39. Nbc3 {[%clk 0:01:13.5]}
39... Nf6 {[%clk 0:00:26.4]} 40. Ra6 {[%clk 0:01:10.2]} 40... Kg7 {[%clk
0:00:14.1]} 41. Rxf6 {[%clk 0:01:05.9]} 41... Kg8 {[%clk 0:00:06.2]} 42. Rc6
{[%clk 0:01:00.3]} 42... Kg7 {[%clk 0:00:07.1]} 43. Rxc4 {[%clk 0:00:59.7]}
43... Be2 {[%clk 0:00:06.9]} 44. Nxe2 {[%clk 0:00:58.8]} 44... Kf7 {[%clk
0:00:06.6]} 45. Bf5 {[%clk 0:00:58.2]} 45... Kf8 {[%clk 0:00:07.5]} 46. Rc7
{[%clk 0:00:57.5]} 46... Ke8 {[%clk 0:00:07.4]} 47. Rd7 {[%clk 0:00:55.5]} 47...
Kf8 {[%clk 0:00:07.5]} 48. a4 {[%clk 0:00:54.8]} 48... Ke8 {[%clk 0:00:08.4]}
49. a5 {[%clk 0:00:54.6]} 49... Kf8 {[%clk 0:00:09.3]} 50. a6 {[%clk 0:00:54.7]}
50... Ke8 {[%clk 0:00:10.2]} 51. a7 {[%clk 0:00:54.8]} 51... Kf8 {[%clk
0:00:11.1]} 52. a8=Q# {[%clk 0:00:53.7]} 1-0

[Event "*** Titled Tuesday Blitz"]
[Site "Chess.com"]
[Date "2020.12.01"]
[Round "8"]
[White "Vanina1989"]
[Black "youngKID"]
[Result "0-1"]
[WhiteElo "2648"]
[BlackElo "2849"]
[TimeControl "180+1"]
[EndTime "11:26:40 PST"]
[Termination "youngKID won by resignation"]

1. d4 {[%clk 0:03:00.9]} 1... Nf6 {[%clk 0:02:58.9]} 2. c4 {[%clk 0:03:00.6]}
2... g6 {[%clk 0:02:59.5]} 3. Nf3 {[%clk 0:03:01]} 3... Bg7 {[%clk 0:03:00]} 4.
Nc3 {[%clk 0:03:01.2]} 4... O-O {[%clk 0:03:00]} 5. e4 {[%clk 0:03:01.8]} 5...
d6 {[%clk 0:03:00.5]} 6. Be2 {[%clk 0:03:02.5]} 6... Nbd7 {[%clk 0:02:59.9]} 7.
O-O {[%clk 0:03:03.1]} 7... e5 {[%clk 0:03:00.3]} 8. Be3 {[%clk 0:03:02.8]} 8...
c6 {[%clk 0:02:52.2]} 9. h3 {[%clk 0:03:02.2]} 9... exd4 {[%clk 0:02:50.7]} 10.
Nxd4 {[%clk 0:03:01.7]} 10... Re8 {[%clk 0:02:51.1]} 11. Qc2 {[%clk 0:03:01.7]}
11... Qe7 {[%clk 0:02:48.6]} 12. Rfe1 {[%clk 0:03:01.5]} 12... Nxe4 {[%clk
0:02:42.1]} 13. Nxe4 {[%clk 0:02:44.9]} 13... Qxe4 {[%clk 0:02:43]} 14. Qd2
{[%clk 0:02:45.5]} 14... Nc5 {[%clk 0:02:28.7]} 15. Bf3 {[%clk 0:02:33]} 15...
Qd3 {[%clk 0:02:19.3]} 16. Rad1 {[%clk 0:01:23]} 16... Qxd2 {[%clk 0:02:14.2]}
17. Rxd2 {[%clk 0:01:23.3]} 17... Bd7 {[%clk 0:01:43.3]} 18. Ne2 {[%clk
0:01:20.2]} 18... Bf5 {[%clk 0:01:30.6]} 19. Rxd6 {[%clk 0:00:48.3]} 19... Nd3
{[%clk 0:01:28.3]} 20. Rf1 {[%clk 0:00:48.6]} 20... Nxb2 {[%clk 0:01:26.1]} 21.
Ng3 {[%clk 0:00:36.3]} 21... Be6 {[%clk 0:01:15.8]} 22. c5 {[%clk 0:00:21.1]}
22... Nc4 {[%clk 0:01:14.3]} 23. Rdd1 {[%clk 0:00:18.2]} 23... Nxe3 {[%clk
0:01:13.2]} 24. fxe3 {[%clk 0:00:18.6]} 24... Bxa2 {[%clk 0:00:40]} 25. Ne4
{[%clk 0:00:18.5]} 25... Re7 {[%clk 0:00:36.2]} 26. Nd6 {[%clk 0:00:17.3]} 26...
Rb8 {[%clk 0:00:28.2]} 27. Rf2 {[%clk 0:00:16.3]} 27... Be6 {[%clk 0:00:27.1]}
28. Rb1 {[%clk 0:00:16.4]} 28... Rc7 {[%clk 0:00:20.1]} 29. Kh1 {[%clk
0:00:14.5]} 29... Be5 {[%clk 0:00:19.4]} 30. Rd2 {[%clk 0:00:11.9]} 30... b5
{[%clk 0:00:18.1]} 31. Be4 {[%clk 0:00:10]} 31... a5 {[%clk 0:00:17.9]} 32. Bf3
{[%clk 0:00:08.3]} 32... a4 {[%clk 0:00:18.1]} 33. Ne4 {[%clk 0:00:08.4]} 33...
a3 {[%clk 0:00:18.1]} 0-1

[Event "*** Titled Tuesday Blitz"]
[Site "Chess.com"]
[Date "2020.12.01"]
[Round "8"]
[White "Gurvich_Vitaly"]
[Black "Region_07"]
[Result "1-0"]
[WhiteElo "2609"]
[BlackElo "2464"]
[TimeControl "180+1"]
[EndTime "11:26:42 PST"]
[Termination "Gurvich_Vitaly won on time"]

1. e4 {[%clk 0:02:06.4]} 1... Nc6 {[%clk 0:02:58.7]} 2. Nf3 {[%clk 0:02:03.3]}
2... f5 {[%clk 0:02:57.9]} 3. Nh4 {[%clk 0:02:02.4]} 3... fxe4 {[%clk
0:02:20.3]} 4. Qh5+ {[%clk 0:02:00]} 4... g6 {[%clk 0:02:20.5]} 5. Nxg6 {[%clk
0:02:00.6]} 5... Nf6 {[%clk 0:02:20.7]} 6. Qh4 {[%clk 0:02:00.9]} 6... Rg8
{[%clk 0:02:17.5]} 7. Nxf8 {[%clk 0:02:01.1]} 7... Rxf8 {[%clk 0:02:08.3]} 8. d3
{[%clk 0:02:00.1]} 8... d5 {[%clk 0:02:05.8]} 9. Nc3 {[%clk 0:01:59]} 9... Nd4
{[%clk 0:01:54]} 10. Kd1 {[%clk 0:01:36.9]} 10... Bf5 {[%clk 0:01:50.3]} 11. Be3
{[%clk 0:01:33.5]} 11... c5 {[%clk 0:01:43.5]} 12. h3 {[%clk 0:01:13.6]} 12...
exd3 {[%clk 0:01:36.1]} 13. Bxd4 {[%clk 0:01:08.9]} 13... cxd4 {[%clk
0:01:22.6]} 14. Qxd4 {[%clk 0:01:09.8]} 14... dxc2+ {[%clk 0:01:20.6]} 15. Kd2
{[%clk 0:01:05.5]} 15... Qd6 {[%clk 0:01:06.4]} 16. f4 {[%clk 0:00:57.2]} 16...
O-O-O {[%clk 0:01:02.1]} 17. Nb5 {[%clk 0:00:46]} 17... Ne4+ {[%clk 0:01:01.7]}
18. Ke3 {[%clk 0:00:45.4]} 18... Qe6 {[%clk 0:00:43.9]} 19. Qxa7 {[%clk
0:00:39.3]} 19... Ng3+ {[%clk 0:00:25.8]} 20. Kf3 {[%clk 0:00:36.8]} 20... Nxh1
{[%clk 0:00:11.8]} 21. Qa8+ {[%clk 0:00:35.6]} 21... Kd7 {[%clk 0:00:12.2]} 22.
Qxb7+ {[%clk 0:00:34.9]} 22... Ke8 {[%clk 0:00:12.3]} 23. Nc7+ {[%clk
0:00:35.5]} 23... Kf7 {[%clk 0:00:12.1]} 24. Nxe6 {[%clk 0:00:36.4]} 24... Bxe6
{[%clk 0:00:10.3]} 25. Bd3 {[%clk 0:00:36.4]} 25... d4 {[%clk 0:00:10.3]} 26.
Ke2 {[%clk 0:00:12.6]} 26... Bd5 {[%clk 0:00:04.9]} 27. Qb6 {[%clk 0:00:12]}
27... Ng3+ {[%clk 0:00:04.3]} 28. Kd2 {[%clk 0:00:12.2]} 28... Rc8 {[%clk
0:00:03.1]} 29. Qh6 {[%clk 0:00:11.1]} 29... Rfd8 {[%clk 0:00:02.5]} 30. Qxh7+
{[%clk 0:00:11]} 30... Ke8 {[%clk 0:00:02.4]} 31. Qg6+ {[%clk 0:00:10.6]} 31...
Bf7 {[%clk 0:00:01.4]} 32. Qxg3 {[%clk 0:00:10.5]} 32... e5 {[%clk 0:00:01.3]}
33. fxe5 {[%clk 0:00:10.3]} 1-0

[Event "*** Titled Tuesday Blitz"]
[Site "Chess.com"]
[Date "2020.12.01"]
[Round "8"]
[White "Kislov_Oleg"]
[Black "Vojtap"]
[Result "1-0"]
[WhiteElo "2368"]
[BlackElo "2137"]
[TimeControl "180+1"]
[EndTime "11:26:42 PST"]
[Termination "Kislov_Oleg won on time"]

1. e4 {[%clk 0:03:00.9]} 1... c5 {[%clk 0:02:59.5]} 2. Nf3 {[%clk 0:02:59.5]}
2... d6 {[%clk 0:03:00.1]} 3. c3 {[%clk 0:02:56.3]} 3... Nf6 {[%clk 0:02:58.2]}
4. Be2 {[%clk 0:02:52.3]} 4... g6 {[%clk 0:02:54.8]} 5. O-O {[%clk 0:02:52]}
5... Bg7 {[%clk 0:02:54.7]} 6. Re1 {[%clk 0:02:49.6]} 6... O-O {[%clk
0:02:53.9]} 7. Bf1 {[%clk 0:02:49.3]} 7... Nc6 {[%clk 0:02:52.7]} 8. d4 {[%clk
0:02:45.7]} 8... cxd4 {[%clk 0:02:50.5]} 9. cxd4 {[%clk 0:02:45.9]} 9... e5
{[%clk 0:02:49.8]} 10. d5 {[%clk 0:02:45.2]} 10... Ne7 {[%clk 0:02:47.3]} 11. h3
{[%clk 0:02:45.3]} 11... Nd7 {[%clk 0:02:43.4]} 12. Nc3 {[%clk 0:02:34]} 12...
f5 {[%clk 0:02:42.4]} 13. Ng5 {[%clk 0:02:25.8]} 13... Nc5 {[%clk 0:02:34]} 14.
exf5 {[%clk 0:02:13]} 14... Nxf5 {[%clk 0:01:59.8]} 15. Nce4 {[%clk 0:01:47]}
15... Nxe4 {[%clk 0:01:46.7]} 16. Rxe4 {[%clk 0:01:45.4]} 16... Nd4 {[%clk
0:01:38.8]} 17. Be3 {[%clk 0:01:32.1]} 17... Bf5 {[%clk 0:01:38]} 18. Bxd4
{[%clk 0:01:15.1]} 18... Bxe4 {[%clk 0:01:15.1]} 19. Ne6 {[%clk 0:01:14.3]}
19... Qf6 {[%clk 0:01:04.4]} 20. Nxf8 {[%clk 0:00:58]} 20... Rxf8 {[%clk
0:01:00.8]} 21. Be3 {[%clk 0:00:56]} 21... Qh4 {[%clk 0:00:36.6]} 22. Qd2 {[%clk
0:00:47]} 22... Rc8 {[%clk 0:00:32.7]} 23. Rc1 {[%clk 0:00:42.7]} 23... Qd8
{[%clk 0:00:31.5]} 24. Rxc8 {[%clk 0:00:33.2]} 24... Qxc8 {[%clk 0:00:30.8]} 25.
Bxa7 {[%clk 0:00:33.4]} 25... Bb1 {[%clk 0:00:12]} 26. a4 {[%clk 0:00:29.6]}
26... Qc2 {[%clk 0:00:09.3]} 27. Qxc2 {[%clk 0:00:27.7]} 27... Bxc2 {[%clk
0:00:10.2]} 28. a5 {[%clk 0:00:27.9]} 28... e4 {[%clk 0:00:09.9]} 29. b4 {[%clk
0:00:26.3]} 29... Bb3 {[%clk 0:00:08.9]} 30. Bb8 {[%clk 0:00:23.9]} 30... Be5
{[%clk 0:00:08]} 31. b5 {[%clk 0:00:21.8]} 31... Bxd5 {[%clk 0:00:07.8]} 32. a6
{[%clk 0:00:22.3]} 32... bxa6 {[%clk 0:00:07.5]} 33. bxa6 {[%clk 0:00:22.8]}
33... Bc6 {[%clk 0:00:06.3]} 34. Bc4+ {[%clk 0:00:21.4]} 34... Kf8 {[%clk
0:00:05.2]} 35. Be6 {[%clk 0:00:21.7]} 35... Ke7 {[%clk 0:00:05.2]} 36. Bc8
{[%clk 0:00:21.9]} 36... Ba8 {[%clk 0:00:01.5]} 37. Bb7 {[%clk 0:00:21.7]} 1-0